Cogmind - Beta 16 @@@ ROGUE MODE // 2025.12.08 @ 04:00:51 Player: Scringis Result: Destroyed by S-10 Pest with Light Assault Rifle Performance ------------- Evolutions (1) 500 Regions Visited (2) 400 Robots Destroyed (31) 155 Value Destroyed (739) 739 Prototype IDs (0) 0 Alien Tech Used (0) 0 Bonus (0) 0 TOTAL SCORE: 1794 Bonus ------- None Cogmind --------- Core Integrity 0/400 Matter 300/300 Energy 94/100 System Corruption 0% Temperature Cool (0) Movement Core (400) Ox7 Location -9/Materials Parts ------- > --- POWER (1) -------- (None) > --- PROPULSION (2) --- (None) > --- UTILITY (3) ------ Large Storage Unit Melee Analysis Suite > --- WEAPON (3) ------- Axe > --- INVENTORY (15) --- Ion Engine Ion Engine Large Storage Unit Light Assault Rifle Rocket Launcher Peak State ------------ > --- POWER ------------ Light Ion Engine > --- PROPULSION ------- Light Treads Light Treads > --- UTILITY ---------- Large Storage Unit Light Armor Plating Light Armor Plating > --- WEAPON ----------- Light Assault Rifle Shotgun Axe > --- INVENTORY -------- Ion Engine Ion Engine Ion Engine Large Storage Unit Rocket Launcher [Rating: 12] Favorites ----------- Power Light Ion Engine Engine Light Ion Engine Propulsion Light Treads Treads Light Treads Wheel Wheel Utility Large Storage Unit Storage Large Storage Unit Processor Melee Analysis Suite Protection Light Armor Plating Weapon Light Assault Rifle Ballistic Gun Light Assault Rifle Launcher Rocket Launcher Slashing Weapon Axe Build | -11 -10 -9 ------- Run | Yrd Mat Mat Slots Evolved 2 | . . 2 Power . | . . . Propulsion . | . . . Utility 1 | . . 1 Weapon 1 | . . 1 Parts Attached 23 | 6 3 14 Power 5 | 1 1 3 Engine 5 | 1 1 3 Core . | . . . Reactor . | . . . Propulsion 6 | 2 1 3 Treads 3 | 1 . 2 Leg . | . . . Wheel 3 | 1 1 1 Hover . | . . . Flight . | . . . Utility 6 | 1 1 4 Device . | . . . Storage 2 | 1 1 . Processor 1 | . . 1 Hackware . | . . . Protection 3 | . . 3 Artifact . | . . . Weapon 6 | 2 . 4 Energy Gun . | . . . Energy Cannon . | . . . Ballistic Gun 4 | 2 . 2 Ballistic Cannon . | . . . Launcher 1 | . . 1 Special Weapon . | . . . Impact Weapon . | . . . Slashing Weapon 1 | . . 1 Piercing Weapon . | . . . Special Melee Weapon . | . . . Unidentified Prototypes . | . . . Parts Lost 15 | . 2 13 Power 3 | . 1 2 Propulsion 6 | . 1 5 Utility 3 | . . 3 Weapon 3 | . . 3 Highest Loss Streak 4 | . 2 4 To Critical Strikes . | . . . Average Backups 4 | 2 4 4 Power 2 | . 1 2 Propulsion . | 1 1 . Utility . | . . 1 Weapon . | . . 1 Tool/Special . | . . . Unused Backups 7 | . 1 6 Power 2 | . . 2 Propulsion . | . . . Utility 3 | . 1 2 Weapon 2 | . . 2 Tool/Special . | . . . Average Slot Usage (%) 76 | . 83 73 Engine 11 | . 13 10 Treads 12 | . 14 12 Wheel 6 | . 13 3 Storage 11 | . 14 11 Protection 4 | . . 6 Ballistic Gun 20 | . 28 16 Slashing Weapon 7 | . . 10 Peak Build Rating 12 | 6 6 12 Average Rating 8 | 3 5 9 On Entrance 4 | . 6 6 Avg Prop Armor Cover (%) 13 | 15 14 12 Naked Turns . | . . . Heaviest Build 38 | 12 27 38 Greatest Support 40 | 20 10 40 Greatest Overweight (x) 11 | 1 2 11 Average Overweight (x) 1 | . 1 1 Largest Inventory Capacity 15 | 8 15 15 Average Capacity 14 | 7 14 15 Most Carried 7 | 5 5 7 Average Carried 4 | 2 4 4 Final Capacity 15 | 8 15 15 Final Carried 5 | 3 4 5 Class Distribution -------------------- 94% | Mutant 5% | Scavenger-Mutant Dominant Class ---------------- Mutant | -10/Materials Mutant | -9/Materials Resources | -11 -10 -9 ----------- Run | Yrd Mat Mat Matter Collected 555 | 90 205 260 Remotely . | . . . Salvage Created 1098 | . 283 815 Parts 72 | . 18 54 Haulers Intercepted 1 | . . 1 Recyclers Shooed . | . . . Parts Field Recycled . | . . . Retrieved Matter . | . . . Parts Self-Destructed . | . . . Prevented . | . . . Parts Restored . | . . . Kills | -11 -10 -9 ------- Run | Yrd Mat Mat Combat Hostiles Destroyed 26 | . 7 19 Melee 14 | . . 14 Guns 12 | . 7 5 Classes Destroyed 7 | . 1 6 Worker 1 | . . 1 Hauler 1 | . . 1 Recycler 3 | . . 3 Swarmer 9 | . . 9 Grunt 15 | . 7 8 Duelist 1 | . . 1 Sentry 1 | . . 1 Best Kill Streak 8 | . 2 8 Combat Bots Only 7 | . 2 7 Max Kills in Single Turn 1 | . 1 1 Gunslinging . | . . . Exploded . | . . . Melee 1 | . . 1 Uniques/NPCs Destroyed . | . . . Combat | -11 -10 -9 -------- Run | Yrd Mat Mat Hostile Shots Fired 213 | . 48 165 Missed 44 | . 8 36 Hits 169 | . 40 129 Melee 11 | . . 11 Projectile 158 | . 40 118 Critical Strikes 3 | . 1 2 Damage Taken 2063 | . 503 1560 Core 520 | . 112 408 Absorbed by Shields . | . . . Core Remaining (%) 77 | 100 55 . Volleys Fired 58 | . 32 26 Largest 2 | . 2 2 Hottest 43 | . 40 43 Shots Fired 108 | . 64 44 Gun 108 | . 64 44 Cannon . | . . . Launcher . | . . . Special . | . . . Kinetic 108 | . 64 44 Thermal . | . . . Explosive . | . . . Electromagnetic . | . . . Robot Hit Streak 10 | . 7 10 Robot Miss Streak 3 | . 2 3 Penetration Max . | . . . Secondary Targets 2 | . 2 . Max Gunslinging Chain 1 | . 1 . Shots Hit Robots 116 | . 44 72 Core Hits 51 | . 19 32 Critical Kills . | . . . Critical Parts Destroyed 1 | . 1 . Critical Strikes 2 | . 1 1 Destroy 1 | . 1 . Sever 1 | . . 1 Melee Attacks 55 | . . 55 Impact . | . . . Slashing 55 | . . 55 Piercing . | . . . Sneak Attacks 3 | . . 3 Combat Hostiles . | . . . Follow-up Attacks . | . . . Damage Inflicted 2041 | . 351 1690 Guns 669 | . 351 318 Cannons . | . . . Explosions . | . . . Melee 1372 | . . 1372 Ramming . | . . . Kinetic 669 | . 351 318 Thermal . | . . . Explosive . | . . . Electromagnetic . | . . . Impact . | . . . Slashing 1372 | . . 1372 Piercing . | . . . Highest Corruption . | . . . Average Corruption . | . . . Corruption Purged . | . . . Corruption Blocked . | . . . Overload Shots . | . . . Overflow Damage 52 | . . 52 Projectiles . | . . . Explosions . | . . . Melee 52 | . . 52 Knockbacks . | . . . Impact . | . . . Kinetic . | . . . Secondary . | . . . Self-Inflicted Damage . | . . . Shots . | . . . Rammed . | . . . Targets Rammed . | . . . Kicked . | . . . Crushed . | . . . Highest Temperature 75 | . 75 16 Average Temperature 20 | . 27 6 Received Heat Transfer 696 | . 300 396 Siege Activations . | . . . Martial Activations . | . . . Shielding Activations . | . . . Robots Disrupted . | . . . Combat Hostiles . | . . . Robots Corrupted . | . . . Combat Hostiles . | . . . Parts Fried . | . . . Impact Corruptions . | . . . Robots Melted . | . . . Combat Hostiles . | . . . Parts Melted . | . . . Heat Transferred . | . . . Parts Sabotaged . | . . . Parts Stolen . | . . . Parts Stripped . | . . . Power Chain Reactions . | . . . Alert | -11 -10 -9 ------- Run | Yrd Mat Mat Maximum Alert Level 1 | . . 1 Low Security (%) 95 | 100 100 93 Level 1 4 | . . 6 Level 2 . | . . . Level 3 . | . . . Level 4 . | . . . Level 5 . | . . . High Security . | . . . Max Security . | . . . Peak Influence 215 | . 60 215 Initial 16 | . . 16 Average 76 | . 19 106 Influence Increases 694 | . 185 509 Destroy 0b10 Robot/C 520 | . 140 380 Destroy 0b10 Robot/NC 25 | . . 25 Destroy Leader 92 | . 40 52 Successful Hack 27 | . 5 22 Lose Combat Pursuer 30 | . . 30 Influence Decreases 535 | . 145 390 Entered New Map 24 | . . 24 Time Decay 401 | . 125 276 Lost Part 110 | . 20 90 Squads Dispatched 3 | . 2 1 Investigation 2 | . 1 1 Extermination . | . . . Reinforcement 1 | . 1 . Assault . | . . . Garrison . | . . . Intercept . | . . . Searches Triggered . | . . . Construction Impeded . | . . . Haulers Reinforced . | . . . Active Scanning Responses . | . . . Cargo Convoy Interrupts . | . . . Stealth | -11 -10 -9 --------- Run | Yrd Mat Mat Distress Signals 7 | . 2 5 Communications Jammed . | . . . Distress Signals . | . . . Times Spotted 39 | . 10 29 Peak Tracking Total 5 | . 3 5 Tactical Retreats 1 | . . 1 Traps | -11 -10 -9 ------- Run | Yrd Mat Mat Traps Triggered 2 | . 1 1 Indirectly . | . . . Trap Hack Attempts . | . . . Triggered . | . . . Disarmed . | . . . Reprogrammed . | . . . Reused . | . . . Traps Extracted . | . . . Installed . | . . . Triggered . | . . . Machines | -11 -10 -9 ---------- Run | Yrd Mat Mat Machines Disabled . | . . . Max in Single Turn . | . . . Machines Repaired . | . . . Machines Dismantled . | . . . Machines Sabotaged . | . . . Overloaded Fab Kills . | . . . Hacking | -11 -10 -9 --------- Run | Yrd Mat Mat Machines Accessed 4 | . 1 3 Terminals 4 | . 1 3 Fabricators . | . . . Repair Stations . | . . . Recycling Units . | . . . Scanalyzers . | . . . Garrison Access . | . . . Total Hacks 15 | . 2 13 Successful 7 | . 1 6 Failed 7 | . 1 6 Catastrophic . | . . . Database Lockouts 1 | . . 1 Manual 15 | . 2 13 Terminals 15 | . 2 13 Fabricators . | . . . Repair Stations . | . . . Recycling Units . | . . . Scanalyzers . | . . . Garrison Access . | . . . Terminal Hacks 3 | . . 3 Robot Analysis 2 | . . 2 Terminal Index 1 | . . 1 Fabricator Hacks . | . . . Repair Station Hacks . | . . . Recycling Unit Hacks . | . . . Scanalyzer . | . . . Garrison Access Hacks . | . . . Unauthorized Hacks 4 | . 1 3 Terminals 4 | . 1 3 Botnet 4 | . 1 3 Fabricators . | . . . Repair Stations . | . . . Recycling Units . | . . . Scanalyzers . | . . . Garrison Access . | . . . Data Cores Recovered . | . . . Used . | . . . Hacking Detections 2 | . . 2 Full Trace Events . | . . . Feedback Events . | . . . Feedback Blocked . | . . . Robot Schematics Acquired . | . . . Robots Built . | . . . Authchips . | . . . Time . | . . . Total Robot Build Rating . | . . . Part Schematics Acquired . | . . . Parts Built . | . . . Authchips . | . . . Time . | . . . Total Part Build Rating . | . . . Part Studies Acquired . | . . . Parts Repaired . | . . . Time . | . . . Parts Recycled . | . . . Recycled Matter . | . . . Retrieved Matter . | . . . Retrieved Components . | . . . Parts Scanalyzed . | . . . Part Schematics Acquired . | . . . Parts Damaged . | . . . Bothacking | -11 -10 -9 ------------ Run | Yrd Mat Mat Used RIF Installer . | . . . Robots Hacked . | . . . Non-combat . | . . . Combat . | . . . Robot Hacks Applied . | . . . Relay Couplers Released . | . . . Fabnet Peak Effective % . | . . . Robots Rewired . | . . . Allies Hacked . | . . . Hacks Repelled . | . . . Allies | -11 -10 -9 -------- Run | Yrd Mat Mat Total Allies . | . . . Largest Group . | . . . Highest-Rated Group . | . . . Highest-Rated Ally . | . . . Total Orders . | . . . Ally Attacks . | . . . Total Damage . | . . . Kills . | . . . Allies Corrupted . | . . . Allies Melted . | . . . Intel | -11 -10 -9 ------- Run | Yrd Mat Mat Active Infowar (turns) . | . . . Robot Analysis Total 2 | . . 2 Derelict Logs Recovered . | . . . Drone Launches . | . . . Drone Recoveries . | . . . Exploration | -11 -10 -9 ------------- Run | Yrd Mat Mat Turns Passed 1191 | 47 351 793 Spaces Moved 607 | 38 226 343 Core 28 | 12 . 16 Treads 127 | 2 . 125 Legs . | . . . Wheels 452 | 24 226 202 Hover . | . . . Flight . | . . . Fastest Speed 50 | 50 95 110 Average Speed 133 | 80 108 154 Slowest Speed 600 | 160 110 600 Overloaded Moves . | . . . Propulsion Burnouts . | . . . Robots Hopped . | . . . Potential Cave-ins . | . . . Cave-ins Triggered . | . . . Exploration Rate (%) 27 | 4 52 27 Regions Visited 2 Branch Regions . Pre-discovered Areas . | . . . Known Exits Taken . | . . . Unknown Exits Taken 2 | 1 1 . Scrap Searched . | . . . Spaces Dug . | . . . Terrain Destroyed . | . . . Melee . | . . . Projectile . | . . . AOE . | . . . Terrain Rammed . | . . . Walls Destroyed . | . . . Machines Disabled . | . . . Actions | -11 -10 -9 --------- Run | Yrd Mat Mat Total 809 | 54 280 475 Wait 25 | . 13 12 Move 605 | 37 225 343 Hop . | . . . Pick Up 32 | 10 5 17 Fast Attach . | . . . Attach 21 | 6 2 13 Detach 1 | . . 1 Swap 4 | . 1 3 Drop 8 | 1 2 5 Fire 58 | . 32 26 Melee 55 | . . 55 Ram . | . . . Kick . | . . . Crush . | . . . Escape Stasis . | . . . Rewire . | . . . Trap . | . . . Miscellaneous . | . . . Route ------- -11/Scrapyard -10/Materials (discovered 2 exits: *Mat / [*Min]) -9/Materials (discovered 2 exits: [*Min] / [*Sto]) History --------- Turn | Location | Event 30 | -11/Scrapyard | Discovered new exit (range 15) 48 | -11/Scrapyard | Entered Materials 294 | -10/Materials | Discovered new exit (range 15) 304 | -10/Materials | Build established: Mutant 383 | -10/Materials | Discovered new exit (range 16) 399 | -10/Materials | Entered another Materials area 399 | -9/Materials | Evolved 2 slots: Utility x1, Weapon x1 654 | -9/Materials | Lost 4 parts (1p2n1w) 709 | -9/Materials | Destroyed 7 combat bots 776 | -9/Materials | Central database locked down 810 | -9/Materials | Discovered new exit (range 6) 917 | -9/Materials | Discovered new exit (range 14) 1011 | -9/Materials | Core integrity fell below 50% 1117 | -9/Materials | Lost 4 parts (2n1u1w) 1169 | -9/Materials | Core integrity fell below 20% 1192 | -9/Materials | Destroyed by S-10 Pest with Light Assault Rifle Last Messages --------------- 01071_ Lgt. Armor Plating severed. 01076_ Acquired Lgt. Armor Plating. 01078_ Lgt. Assault Rifle destroyed. 01078_ Lgt. Armor Plating destroyed. 01082_ Destroyed Imp. Aluminum Leg. 01086_ Lgt. Treads destroyed. 01093_ L-31 Rogue destroyed. 01109_ Acquired Melee Analysis Suite. 01111_ Dropped Shotgun. 01111_ Acquired 20 matter. 01112_ W-16 Scout sends out distress signal. 01115_ K-01 Serf collects debris. 01130_ Lgt. Armor Plating destroyed. 01133_ S-10 Pest destroyed. 01151_ K-01 Serf collects debris. 01162_ R-06 Scavenger collects Imp. Ion Engine. 01163_ W-16 Scout sends out distress signal. 01165_ R-06 Scavenger collects Shotgun. 01170_ R-06 Scavenger collects Flight Unit. 01185_ Ion Engine destroyed. Map ----- +----------------------------------------------------+ | | | ???????????????????????????????????????? | | ???????##############??????????????????? | | ???????# #??????????????????? | | ???????# #??????????????????? | | ???????# #??????????????????? | | ???????# #??????????????????? | | ???????# #??????????????????? | | ???????# ############??????????????????? | | ???????# #?#"""#???????????????????????? | | ???????# ##"|||"##?????????????????????? | | ???????# #"" ""#?????????????????????? | | ???????# # #?????????????????????? | | ???????# # < #?????????????????????? | | ???????# # #?????????????????????? | | ???????# # #?????????????????????? | | ???????# #? #??????????????????????? | | ???????# ### #???????????????????????? | | ???????# k #???????????????????????? | | ??????## ###########?????????????? | | ??????#" ## #?????????????? | | ??????#" ## #?????????????? | | ??????#" * #* #????????? ??? | | ??????#T != ==#= ##### | | #######" !**s%[ %%+ | | # #" [=@#% = #########?????? | | # #" """=!%#= #?????????????? | | # ## """ !*# #?????????????? | | # %## """ # #?????????????? | | # !# ##########?????????????? | | # /% #??????????????????????? | | # < # #??????????????????????? | | # # ### ###??????????????????????? | | # = # #?#a#????????????????????????? | | # !% # #?# #????????????????????????? | | # =%# #?# ?????????????????????????? | | # ! + #?# ?????????????????????????? | | ######## ####+########?????????????????? | | ???????# #?# #?????????????????? | | ???????# #?# T % #?????????????????? | | ???????# #?# ] #?????????????????? | | ???????# #?# *%! #?????????????????? | | ???????# #?# """!""" #?????????????????? | | ???????# ### """ """ #?????????????????? | | ???????# ## """ """ #?????????????????? | | ???????# ### #?????????????????? | | ???????# #?#####+#####?????????????????? | | ??????##+######!!!#########????????????? | | ??????# #!%!# #????????????? | | ??????# +!!!+ #????????????? | +----------------------------------------------------+ Best States ------------- Heat Dissipation 28 Energy Generation 10 Energy Capacity 250 Matter Stores 300 Matter Capacity 300 Sight Range 16 Terrain Scan Density 10 Armor Coverage 300 Evasion (%) 50 Melee Accuracy 5 Recoil Reduction 2 Item Schematics ----------------- None Robot Schematics ------------------ None Fabricated ------------ Nothing Repaired ---------- Nothing Studied --------- None Alien Tech Used ----------------- None Achievements -------------- None Challenges ------------ None Game ------ Seed PhysicsArmageddonMonowheel Manual? 0 Play Time 00:12:57 Cumulative 67.9 hours Start 2025.12.08 @ 03:53:05 End 2025.12.08 @ 04:00:51 Sessions 1 Manual Loads 0 Difficulty Rogue Special Mode None Game No. 174 Rogue 174 Adventurer 0 Explorer 0 Win Type - Total 0 Types 0/0/0/0/0/0/0/0/0/0 Lore% 33 Gallery% 36 Achievement% 29 Wizard Run 0 Options --------- Layout 1 ASCII 0 Keyboard 0 Movement Numpad Keybinds 0 Fullscreen 2 Font 24/Smallcaps Map View 50x35 Zoom Use 0% Tactical HUD 1 Map Filters NONE Filters NONE Steam 1 RUN: 591c2d3a-aa27-4458-87c8-20b5cf58b8b6